Cogmind - Beta 13 X1 @@@ ROGUE MODE // 2023.07.11 @ 09:38:32 Player: Kyzrati Result: Self-destructed Performance ------------- Evolutions (5) 2500 Regions Visited (4) 800 Robots Destroyed (20) 100 Value Destroyed (374) 374 Prototype IDs (1) 20 Alien Tech Used (0) 0 Bonus (-269) -269 TOTAL SCORE: 3525 Bonus ------- Friendly Fire -269 Cogmind --------- Core Integrity 1000/1000 Matter 297/300 Energy 150/150 System Corruption 0% Temperature Cool (0) Movement Walking (120) Location -5/Factory Parts ------- > --- POWER (1) -------- Light Angular Momentum Engine > --- PROPULSION (2) --- Myomer Leg Myomer Leg > --- UTILITY (2) ------ Scrap Shield > --- WEAPON (12) ------ Subdweller Laser Heavy Battle Rifle > --- INVENTORY (5) ---- Aluminum Leg Subdweller Monowheel Improved Assault Rifle Improved Assault Rifle Subdweller Shrapnel Launcher Peak State ------------ > --- POWER ------------ Light Angular Momentum Engine > --- PROPULSION ------- Myomer Leg Myomer Leg > --- UTILITY ---------- Cobbler Unit > --- WEAPON ----------- Subdweller Laser Heavy Battle Rifle > --- INVENTORY -------- Aluminum Leg Subdweller Monowheel Improved Assault Rifle Improved Assault Rifle Subdweller Shrapnel Launcher [Rating: 30] Favorites ----------- Power Light Angular Momentum Engine Engine Light Angular Momentum Engine Propulsion Myomer Leg Treads Light Treads Leg Myomer Leg Wheel Subdweller Monowheel Utility Scrap Shield Device Cooling System Storage Small Storage Unit Protection Scrap Shield Weapon Subdweller Laser Energy Gun Subdweller Laser Ballistic Gun Heavy Battle Rifle Launcher Subdweller Shrapnel Launcher Build | -11 -10 -10 -7 -5 ------- Run | Jun Mat Sub Rec Fac Slots Evolved 10 | . . . . 10 Power . | . . . . . Propulsion . | . . . . . Utility . | . . . . . Weapon 10 | . . . . 10 Parts Attached 34 | 6 3 25 . . Power 3 | 1 . 2 . . Engine 3 | 1 . 2 . . Core . | . . . . . Reactor . | . . . . . Propulsion 7 | 2 . 5 . . Treads 2 | 2 . . . . Leg 2 | . . 2 . . Wheel 3 | . . 3 . . Hover . | . . . . . Flight . | . . . . . Utility 5 | 1 1 3 . . Device 2 | . 1 1 . . Storage 1 | 1 . . . . Processor . | . . . . . Hackware . | . . . . . Protection 2 | . . 2 . . Artifact . | . . . . . Weapon 19 | 2 2 15 . . Energy Gun 3 | . . 3 . . Energy Cannon . | . . . . . Ballistic Gun 11 | 2 2 7 . . Ballistic Cannon . | . . . . . Launcher 5 | . . 5 . . Special Weapon . | . . . . . Impact Weapon . | . . . . . Slashing Weapon . | . . . . . Piercing Weapon . | . . . . . Special Melee Weapon . | . . . . . Unidentified Prototypes 1 | . 1 . . . Parts Lost . | . . . . . Power . | . . . . . Propulsion . | . . . . . Utility . | . . . . . Weapon . | . . . . . Highest Loss Streak . | . . . . . To Critical Strikes . | . . . . . Average Slot Usage (%) 86 | . 98 85 85 . Engine 13 | . 14 13 14 . Treads 5 | . 28 1 . . Leg 17 | . . 19 28 . Wheel 5 | . . 6 . . Device 2 | . 12 . . . Storage 2 | . 14 . . . Protection 11 | . . 13 14 . Energy Gun 11 | . . 13 14 . Ballistic Gun 16 | . 28 14 14 . Naked Turns . | . . . . . Heaviest Build 39 | 13 18 39 35 . Greatest Support 50 | 40 40 50 50 . Greatest Overweight (x) 1 | . . 1 . . Average Overweight (x) . | . . . . . Largest Inventory Capacity 8 | 8 8 8 5 . Average Capacity 5 | 6 8 5 5 . Most Carried 6 | 3 6 6 5 . Average Carried 4 | 1 5 4 5 . Final Capacity 8 | 8 8 5 5 5 Final Carried 6 | 3 6 5 5 5 Class Distribution -------------------- 67% | Mutant 29% | Subdweller-Mutant Dominant Class ---------------- Mutant | -10/Materials Mutant | -10/Subcaves Mutant | -7/Recycling Mutant | -5/Factory Resources | -11 -10 -10 -7 -5 ----------- Run | Jun Mat Sub Rec Fac Matter Collected 1183 | 209 169 805 . . Remotely . | . . . . . Salvage Created 505 | . 132 373 . . Parts 31 | . 12 19 . . Haulers Intercepted . | . . . . . Recyclers Shooed . | . . . . . Parts Field Recycled . | . . . . . Retrieved Matter . | . . . . . Parts Self-Destructed 14 | . . 14 . . Prevented . | . . . . . Kills | -11 -10 -10 -7 -5 ------- Run | Jun Mat Sub Rec Fac Combat Hostiles Destroyed 16 | . 7 9 . . Guns 13 | . 7 6 . . AOE 3 | . . 3 . . Classes Destroyed 7 | . 3 4 . . Turret 1 | . . 1 . . Watcher 1 | . 1 . . . Swarmer 10 | . 6 4 . . Grunt 2 | . 1 1 . . Artisan 1 | . . 1 . . Subdweller 4 | . . 4 . . Thug 1 | . . 1 . . Guerrilla 1 | . . 1 . . Best Kill Streak 4 | . 3 4 . . Combat Bots Only 4 | . 3 4 . . Max Kills in Single Turn 3 | . 1 3 . . Gunslinging . | . . . . . Exploded 3 | . . 3 . . Melee . | . . . . . Uniques/NPCs Destroyed . | . . . . . Combat | -11 -10 -10 -7 -5 -------- Run | Jun Mat Sub Rec Fac Damage Taken 1041 | . 313 728 . . Core 141 | . 81 60 . . Absorbed by Shields . | . . . . . Core Remaining (%) 71 | 100 . . 43 . Volleys Fired 159 | . 18 141 . . Largest 2 | . 2 2 . . Hottest 93 | . 46 93 . . Shots Fired 205 | . 36 168 1 . Gun 195 | . 36 158 1 . Cannon . | . . . . . Launcher 10 | . . 10 . . Special . | . . . . . Kinetic 91 | . 36 54 1 . Thermal 114 | . . 114 . . Explosive . | . . . . . Electromagnetic . | . . . . . Robot Hit Streak 14 | . 6 14 . . Robot Miss Streak 3 | . 2 3 1 . Penetration Max . | . . . . . Secondary Targets 1 | . 1 . . . Max Gunslinging Chain 1 | . 1 . . . Shots Hit Robots 80 | . 25 55 . . Core Hits 33 | . 9 24 . . Critical Kills . | . . . . . Critical Parts Destroyed . | . . . . . Critical Strikes 1 | . . 1 . . Destroy 1 | . . 1 . . Melee Attacks . | . . . . . Impact . | . . . . . Slashing . | . . . . . Piercing . | . . . . . Sneak Attacks . | . . . . . Combat Hostiles . | . . . . . Follow-up Attacks . | . . . . . Damage Inflicted 2078 | . 379 1699 . . Guns 1436 | . 379 1057 . . Cannons . | . . . . . Explosions 642 | . . 642 . . Melee . | . . . . . Ramming . | . . . . . Kinetic 1630 | . 379 1251 . . Thermal 448 | . . 448 . . Explosive . | . . . . . Electromagnetic . | . . . . . Impact . | . . . . . Slashing . | . . . . . Piercing . | . . . . . Highest Corruption 1 | . 1 1 1 . Average Corruption 1 | . 1 1 1 . Corruption Purged . | . . . . . Corruption Blocked . | . . . . . Effects 29 | . 4 23 2 . Message Errors 7 | . 2 4 1 . Matter Fused 10 | . 1 9 . . Heat Flow Errors 3 | . . 3 . . Energy Discharges 2 | . 1 1 . . Data Loss (minor) 4 | . . 4 . . Data Loss (major) 2 | . . 2 . . Misfires 1 | . . . 1 . Overload Shots . | . . . . . Overflow Damage 26 | . . 26 . . Projectiles . | . . . . . Explosions 26 | . . 26 . . Melee . | . . . . . Knockbacks . | . . . . . Impact . | . . . . . Kinetic . | . . . . . Secondary . | . . . . . Self-Inflicted Damage 113 | . . 113 . . Shots 3 | . . 3 . . Rammed . | . . . . . Targets Rammed . | . . . . . Kicked . | . . . . . Crushed . | . . . . . Highest Temperature 236 | . . 236 2 . Average Temperature 104 | . . 113 2 . Received Heat Transfer 129 | . 24 105 . . Siege Activations . | . . . . . Robots Corrupted . | . . . . . Combat Hostiles . | . . . . . Parts Fried . | . . . . . Impact Corruptions . | . . . . . Robots Melted . | . . . . . Combat Hostiles . | . . . . . Parts Melted 1 | . . 1 . . Heat Transferred 550 | . . 550 . . Parts Sabotaged . | . . . . . Parts Stolen . | . . . . . Parts Stripped . | . . . . . Power Chain Reactions . | . . . . . Missiles Intercepted . | . . . . . Alert | -11 -10 -10 -7 -5 ------- Run | Jun Mat Sub Rec Fac Peak Influence 166 | . 126 . 166 . Initial 166 | . . . 166 69 Average 72 | . 61 . 166 . Maximum Alert Level . | . . . . . Low Security (%) 100 | 100 100 . 100 . Level 1 . | . . . . . Level 2 . | . . . . . Level 3 . | . . . . . Level 4 . | . . . . . Level 5 . | . . . . . High Security . | . . . . . Max Security . | . . . . . Squads Dispatched 1 | . 1 . . . Investigation . | . . . . . Extermination . | . . . . . Reinforcement 1 | . 1 . . . Assault . | . . . . . Garrison . | . . . . . Intercept . | . . . . . Searches Triggered . | . . . . . Construction Impeded . | . . . . . Haulers Reinforced . | . . . . . Active Scanning Responses . | . . . . . Cargo Convoy Interrupts . | . . . . . Stealth | -11 -10 -10 -7 -5 --------- Run | Jun Mat Sub Rec Fac Distress Signals 1 | . 1 . . . Communications Jammed . | . . . . . Distress Signals . | . . . . . Times Spotted 54 | . 14 40 . . Peak Tracking Total 9 | . 3 9 . . Tactical Retreats 4 | . . 4 . . Traps | -11 -10 -10 -7 -5 ------- Run | Jun Mat Sub Rec Fac Traps Triggered 1 | . 1 . . . Indirectly . | . . . . . Trap Hack Attempts . | . . . . . Triggered . | . . . . . Disarmed . | . . . . . Reprogrammed 4 | . 4 . . . Reused 1 | . 1 . . . Traps Extracted . | . . . . . Installed . | . . . . . Triggered 1 | . 1 . . . Machines | -11 -10 -10 -7 -5 ---------- Run | Jun Mat Sub Rec Fac Machines Disabled 3 | . . 3 . . Max in Single Turn 2 | . . 2 . . Machines Repaired . | . . . . . Machines Sabotaged . | . . . . . Overloaded Fab Kills . | . . . . . Hacking | -11 -10 -10 -7 -5 --------- Run | Jun Mat Sub Rec Fac Machines Accessed 2 | . 1 1 . . Terminals 1 | . 1 . . . Fabricators . | . . . . . Repair Stations . | . . . . . Recycling Units . | . . . . . Scanalyzers . | . . . . . Garrison Access . | . . . . . Total Hacks 5 | . 3 2 . . Successful 4 | . 2 2 . . Failed 1 | . 1 . . . Catastrophic . | . . . . . Database Lockouts . | . . . . . Manual . | . . . . . Terminals 3 | . 3 . . . Fabricators . | . . . . . Repair Stations . | . . . . . Recycling Units . | . . . . . Scanalyzers . | . . . . . Garrison Access . | . . . . . Terminal Hacks 4 | . 2 2 . . Record 2 | . . 2 . . Locate Traps 1 | . 1 . . . Reprogram Traps 1 | . 1 . . . Fabricator Hacks . | . . . . . Repair Station Hacks . | . . . . . Recycling Unit Hacks . | . . . . . Scanalyzer . | . . . . . Garrison Access Hacks . | . . . . . Unauthorized Hacks . | . . . . . Terminals . | . . . . . Fabricators . | . . . . . Repair Stations . | . . . . . Recycling Units . | . . . . . Scanalyzers . | . . . . . Garrison Access . | . . . . . Data Cores Recovered . | . . . . . Used . | . . . . . Hacking Detections 1 | . 1 . . . Full Trace Events . | . . . . . Feedback Events . | . . . . . Feedback Blocked . | . . . . . Robot Schematics Acquired . | . . . . . Robots Built . | . . . . . Authchips . | . . . . . Time . | . . . . . Total Robot Build Rating . | . . . . . Part Schematics Acquired . | . . . . . Parts Built . | . . . . . Authchips . | . . . . . Time . | . . . . . Total Part Build Rating . | . . . . . Parts Repaired . | . . . . . Time . | . . . . . Parts Recycled . | . . . . . Recycled Matter . | . . . . . Retrieved Matter . | . . . . . Retrieved Components . | . . . . . Parts Scanalyzed . | . . . . . Part Schematics Acquired . | . . . . . Parts Damaged . | . . . . . Bothacking | -11 -10 -10 -7 -5 ------------ Run | Jun Mat Sub Rec Fac Used RIF Installer . | . . . . . Robots Hacked . | . . . . . Non-combat . | . . . . . Combat . | . . . . . Robot Hacks Applied . | . . . . . Relay Couplers Released . | . . . . . Fabnet Peak Effective % . | . . . . . Robots Rewired . | . . . . . Allies Hacked . | . . . . . Hacks Repelled . | . . . . . Allies | -11 -10 -10 -7 -5 -------- Run | Jun Mat Sub Rec Fac Total Allies . | . . . . . Largest Group . | . . . . . Highest-Rated Group . | . . . . . Highest-Rated Ally . | . . . . . Total Orders . | . . . . . Ally Attacks . | . . . . . Total Damage . | . . . . . Kills . | . . . . . Allies Corrupted . | . . . . . Allies Melted . | . . . . . Intel | -11 -10 -10 -7 -5 ------- Run | Jun Mat Sub Rec Fac Robot Analysis Total . | . . . . . Derelict Logs Recovered 2 | . . 2 . . Drone Launches . | . . . . . Drone Recoveries . | . . . . . Exploration | -11 -10 -10 -7 -5 ------------- Run | Jun Mat Sub Rec Fac Turns Passed 4562 | 87 631 3706 138 . Spaces Moved 3076 | 54 253 2653 116 . Core 9 | 9 . . . . Treads 399 | 45 253 101 . . Legs 2017 | . . 1901 116 . Wheels 651 | . . 651 . . Hover . | . . . . . Flight . | . . . . . Fastest Speed 50 | 50 160 110 120 . Average Speed 124 | 141 160 120 120 . Slowest Speed 160 | 160 160 160 120 . Overloaded Moves . | . . . . . Propulsion Burnouts . | . . . . . Robots Hopped . | . . . . . Cave-ins Triggered . | . . . . . Exploration Rate (%) 30 | 3 41 75 31 1 Regions Visited 4 Branch Regions 2 Pre-discovered Areas . | . . . . . Known Exits Taken 1 | . . 1 . . Unknown Exits Taken 3 | 1 1 . 1 . Scrap Searched 1 | . . 1 . . Spaces Dug 27 | . . 27 . . Terrain Destroyed 171 | . . 171 . . Melee . | . . . . . Projectile 28 | . . 28 . . AOE 143 | . . 143 . . Terrain Rammed . | . . . . . Walls Destroyed . | . . . . . Machines Disabled . | . . . . . Actions | -11 -10 -10 -7 -5 --------- Run | Jun Mat Sub Rec Fac Total 3615 | 62 444 2994 115 . Wait 300 | . 162 138 . . Move 3072 | 53 252 2652 115 . Hop . | . . . . . Pick Up 12 | 3 4 5 . . Fast Attach 22 | 6 3 13 . . Attach . | . . . . . Detach 2 | . 2 . . . Swap 12 | . . 12 . . Drop 24 | . 3 21 . . Fire 159 | . 18 141 . . Melee . | . . . . . Ram . | . . . . . Kick . | . . . . . Crush . | . . . . . Escape Stasis . | . . . . . Rewire . | . . . . . Trap . | . . . . . Miscellaneous 12 | . . 12 . . Route ------- -11/Junkyard -10/Materials (discovered 3 exits: [*Mat] / [*Min] / *Sub) -10/Subcaves (discovered 3 exits: [*Mat] / *Mat / *Rec) -7/Recycling -5/Factory History --------- Turn | Location | Event 4 | -11/Junkyard | Discovered new exit (range 16) 88 | -11/Junkyard | Entered Materials 316 | -10/Materials | Build established: Mutant 342 | -10/Materials | Discovered new exit (range 9) 556 | -10/Materials | Discovered new exit (range 15) 704 | -10/Materials | Discovered new exit (range 10) 719 | -10/Materials | Entered Subcaves 814 | -10/Subcaves | Learned Materials trap positions 836 | -10/Subcaves | Discovered new exit (range 5) 844 | -10/Subcaves | Visited Clippyterm 849 | -10/Subcaves | Identified exit to Materials 849 | -10/Subcaves | Identified exit to Recycling 860 | -10/Subcaves | Shifting Twisted Machinery released Sub. Shrapnel Launcher 888 | -10/Subcaves | Ambushed by swarm of Subdwellers 890 | -10/Subcaves | Ambushed by Subdwellers from Twisted Machinery 891 | -10/Subcaves | Ambushed by Subdwellers from Twisted Machinery 891 | -10/Subcaves | Ambushed by Subdwellers from Twisted Machinery 1192 | -10/Subcaves | Build established: Subdweller-Mutant 1509 | -10/Subcaves | A swath of the cavern ceiling suddenly collapsed 1661 | -10/Subcaves | Shifting Twisted Machinery released Mak. System Restoration Module 1664 | -10/Subcaves | Shifting Twisted Machinery released Sub. Laser 1900 | -10/Subcaves | Core integrity fell below 50% 2625 | -10/Subcaves | Build established: Mutant 3637 | -10/Subcaves | Ambushed by Subdweller buried in earth 3773 | -10/Subcaves | Ambushed by Subdweller buried in earth 3773 | -10/Subcaves | Ambushed by Subdweller buried in earth 3773 | -10/Subcaves | Ambushed by Subdweller buried in earth 4097 | -10/Subcaves | Ambushed by Subdweller buried in earth 4425 | -10/Subcaves | Entered Recycling 4545 | -7/Recycling | Discovered new exit (range 16) 4563 | -7/Recycling | Entered Factory 4563 | -5/Factory | Evolved 10 slots: Weapon x10 4563 | -5/Factory | Self-destructed Last Messages --------------- 04098_ CN-59H(R): "ARGHSUB!" 04103_ CN-59H(R) suffers critical hit (Destroy). 04112_ CN-59H(R) destroyed. 04121_ Scrap Shield Fragment affixed to Scrap Shield (+22). 04122_ Acquired 54 matter. 04232_ System corrupted: Heat flow error (+136). 04261_ System corrupted: Component data lost. 04355_ Acquired 21 matter. 04422_ System corrupted: Heat flow error (+270). A mysterious object appears at your location! LOCATION=RECYCLING GOAL=ESCAPE 04521_ System corrupted: FCS attempts to trigger Hvy. Battle Rifle. 04521_ System corrupted: Hvy. Battle Rifle misfires. 04545_ EXIT=FOUND 04558_ O6CXBOF04=Z2OS>KLZ6ALDC G0Y7AHLPUDGR: PARAMETERS=WEAPON+10 LOCATION=UNKNOWN GOAL=ESCAPE Map ----- +----------------------------------------------------+ | ?????????????????????????????????? | | ?????????????????????????????????? | | ?????????????????????????????????? | | ?????????????????????????????????? | | ?????????????????????????????????? | | ?????????????????????????????????? | | ?????????????????????????????????? | | ?????????????????????????????????? | | ?????????????????????????????????? | | ?????????????????????????????????? | | ???????#?????????????????????????? | | ????? ?????????????????????????? | | ???# ?????? ????????????????? | | ???# ###### ??????????????? | | ???# #?????????????? | | ???# #?????????????? | | ???# #?????????????? | | ???? #?????????????? | | ????? #?????????????? | | ????? #?????????????? | | ?????? #?????????????? | | ??????# #?????????????? | | ??????# #?????????????? | | ??????# +?????????????? | | ??????# #?????????????? | | ??????# @ #?????????????? | | ??????# #?????????????? | | ??????# #?????????????? | | ??????######## #?????????????? | | ??????????????? #?????????????? | | ????????????????? ????????????? | | ?????????????????? ###???????????? | | ?????????????????????????????????? | | ?????????????????????????????????? | | ?????????????????????????????????? | | ?????????????????????????????????? | | ?????????????????????????????????? | | ?????????????????????????????????? | | ?????????????????????????????????? | | ?????????????????????????????????? | | ?????????????????????????????????? | | ?????????????????????????????????? | | ?????????????????????????????????? | | ?????????????????????????????????? | | ?????????????????????????????????? | | ?????????????????????????????????? | | ?????????????????????????????????? | | ?????????????????????????????????? | | ?????????????????????????????????? | | ?????????????????????????????????? | +----------------------------------------------------+ Best States ------------- Heat Dissipation 47 Energy Generation 18 Energy Capacity 250 Matter Stores 300 Matter Capacity 300 Sight Range 16 Terrain Scan Density 10 Armor Coverage 800 Evasion (%) 55 Recoil Reduction 2 Item Schematics ----------------- None Robot Schematics ------------------ None Fabricated ------------ Nothing Alien Tech Used ----------------- None Achievements -------------- None Challenges ------------ None Game ------ Seed WardroneHardcellCore Manual? 0 Play Time 01:04:19 Cumulative 457.4 hours Start 2023.07.11 @ 08:12:01 End 2023.07.11 @ 09:38:32 Sessions 1 Manual Loads 0 Difficulty Rogue Special Mode None Game No. 125 Rogue 125 Adventurer 0 Explorer 0 Win Type - Total 32 Types 24/0/2/2/0/1/1/2/0 Lore% 43 Gallery% 80 Achievement% 85 Wizard Run 0 Options --------- ASCII 1 Keyboard 1 Movement Numpad Keybinds 0 Fullscreen 2 Font 20/SmallcapsGlow Map View 66x50 Tactical HUD 1 Map Filters NONE Filters NONE Steam 1 RUN: e3cc7689-25bb-4a21-aa0b-a1965c749c95